bitfinex/quotes_BTCUSD_20220303
["timestamp","ask_amount","ask_price","bid_price","bid_amount"]
[1646276738134,0.0457,43802.0,43801.0,0.01]
[1646276738334,0.3457,43802.0,43801.0,0.01]
[1646276738969,0.4457,43802.0,43801.0,0.01]
[1646276740070,0.1457,43802.0,43801.0,0.01]
[1646276740268,0.0457,43802.0,43801.0,0.01]
[1646276741371,0.22121329,43813.0,43803.0,0.8]
[1646276741570,0.07382895,43817.0,43803.0,0.8]
[1646276741571,0.05,43817.0,43805.0,0.137058]
[1646276741767,0.05,43817.0,43806.0,0.22790083]
[1646276741970,0.05,43826.0,43808.0,0.571]
[1646276742169,0.15,43833.0,43809.0,0.0457]
[1646276742431,0.21094964,43822.0,43810.0,0.3]
[1646276742634,0.21094964,43822.0,43811.0,0.0457]
[1646276742831,0.21094964,43822.0,43814.0,0.057088]
[1646276743034,0.21094964,43822.0,43808.0,0.0507]
[1646276743428,0.21094964,43822.0,43813.0,7.982e-05]
[1646276743429,0.20403067,43815.0,43813.0,7.982e-05]
[1646276743630,0.14,43814.0,43813.0,7.982e-05]
[1646276744032,1.6469,43813.0,43801.0,0.01]
[1646276744235,0.6969,43810.0,43801.0,0.01]
[1646276744431,0.15,43811.0,43801.0,0.01]
[1646276744432,0.571,43804.0,43801.0,0.01]
[1646276744633,0.14,43802.0,43801.0,0.01]
[1646276744832,0.21770009,43802.0,43801.0,0.01]
[1646276745031,0.21769894,43802.0,43801.0,0.01]
[1646276745238,0.14623811,43802.0,43801.0,0.01]
[1646276745633,0.3202974,43802.0,43801.0,0.01]
[1646276746268,0.0457,43802.0,43801.0,0.01]
[1646276746469,0.14623811,43802.0,43801.0,0.01]
[1646276746870,0.0457,43802.0,43801.0,0.01]
[1646276747067,0.14623696,43802.0,43801.0,0.01]
[1646276748470,0.36597731,43802.0,43801.0,0.01]
[1646276749070,0.36658798,43802.0,43801.0,0.01]
[1646276749915,0.61597731,43802.0,43801.0,0.00938933]
[1646276750109,0.71597731,43802.0,43801.0,0.00938933]
[1646276750310,1.01597731,43802.0,43801.0,0.00938933]
[1646276750710,1.02297731,43802.0,43801.0,0.00938933]
[1646276751911,1.01597731,43802.0,43801.0,0.00938933]
[1646276752810,0.95,43801.0,43800.0,0.0011]
[1646276753017,2.1067,43801.0,43800.0,0.0011]
[1646276753412,2.1067,43801.0,43792.0,0.0011]
[1646276753413,0.25,43794.0,43792.0,0.0011]
[1646276753682,0.4857,43793.0,43792.0,0.0011]
[1646276754080,0.4857,43793.0,43792.0,0.0007066]
[1646276754283,0.4462473,43793.0,43792.0,0.0007066]
[1646276754580,0.4502473,43793.0,43792.0,0.0007066]
[1646276755883,0.4462473,43793.0,43792.0,0.0007066]
[1646276759231,0.1462473,43793.0,43792.0,0.0007066]
[1646276761031,0.4461773,43793.0,43792.0,0.0007066]
[1646276761268,0.4521773,43793.0,43792.0,0.0007066]
[1646276761676,0.6044133,43793.0,43792.0,0.0007066]
[1646276761870,0.7084133,43793.0,43792.0,0.0007066]
[1646276762072,0.9794133,43793.0,43792.0,0.0007066]
[1646276762368,1.9763133,43793.0,43792.0,0.0007066]
[1646276762769,1.9663133,43793.0,43792.0,0.0007066]
[1646276762968,1.6663133,43793.0,43792.0,0.0007066]
[1646276765232,0.9694133,43793.0,43792.0,0.0007066]
[1646276767437,0.96939951,43793.0,43792.0,0.0007066]
[1646276767636,0.39839951,43793.0,43792.0,0.0007066]
[1646276767835,0.24616351,43793.0,43792.0,0.0007066]
[1646276768035,0.14616351,43793.0,43792.0,0.0007066]
[1646276768237,0.3471832,43793.0,43792.0,0.0007066]
[1646276768660,0.14616351,43793.0,43792.0,0.0007066]
[1646276771465,0.15016351,43793.0,43792.0,0.0007066]
[1646276772717,0.14616351,43793.0,43792.0,0.0007066]
[1646276773319,0.32501345,43793.0,43792.0,0.0007066]
[1646276773526,0.32501345,43793.0,43775.0,0.1127]
[1646276773527,0.8,43791.0,43775.0,0.1127]
[1646276773726,0.8,43791.0,43772.0,0.0011]
[1646276773727,0.25,43785.0,43772.0,0.0011]
[1646276773924,0.0457,43784.0,43772.0,0.3011]
[1646276774522,0.29269931,43780.0,43772.0,0.3011]
[1646276774723,0.2021465,43783.0,43780.0,0.1400059]
[1646276774921,0.03942857,43781.0,43780.0,0.1400059]
[1646276775121,0.08512857,43781.0,43780.0,0.1400059]
[1646276775524,0.08812857,43781.0,43780.0,0.1400059]
[1646276775723,0.26782674,43781.0,43780.0,0.1400059]
[1646276776465,0.62498274,43781.0,43780.0,0.1400059]
[1646276776964,1.19298274,43781.0,43780.0,0.1400059]
[1646276777563,1.19598274,43781.0,43780.0,0.1400059]
[1646276778164,1.29598274,43781.0,43780.0,0.1400059]
[1646276778364,1.99288274,43781.0,43780.0,0.1400059]
[1646276778964,1.98988274,43781.0,43780.0,0.1400059]
[1646276779164,1.29298274,43781.0,43780.0,0.1400059]
[1646276779566,1.99388274,43781.0,43780.0,0.1400059]
[1646276779766,1.29698274,43781.0,43780.0,0.1400059]
[1646276781339,1.29298274,43781.0,43780.0,0.1400059]
[1646276781538,1.29698274,43781.0,43780.0,0.1400059]
[1646276782738,1.29298274,43781.0,43780.0,0.1400059]
[1646276784486,1.00716111,43780.0,43772.0,0.0011]
[1646276784686,0.03942857,43777.0,43772.0,0.0011]
[1646276784886,0.08512857,43777.0,43772.0,0.0011]
[1646276785485,0.08812857,43777.0,43772.0,0.0011]
[1646276786688,0.08812857,43777.0,43774.0,0.00128589]
[1646276786988,0.08512857,43777.0,43774.0,0.00128589]
[1646276787633,0.08512857,43777.0,43774.0,0.0011]
[1646276787829,0.08512857,43777.0,43774.0,0.00128589]
[1646276788433,0.08512857,43777.0,43774.0,1e-08]
[1646276788434,0.95,43776.0,43774.0,1e-08]
[1646276788633,0.0457,43775.0,43774.0,1e-08]
[1646276788832,0.10234022,43775.0,43772.0,0.0011]
[1646276789035,0.03942857,43773.0,43772.0,0.0011]
[1646276789231,0.0457,43773.0,43772.0,0.0011]
[1646276790836,0.08512857,43773.0,43772.0,0.0011]
[1646276791882,0.25171513,43773.0,43772.0,0.0011]
[1646276792283,0.08512857,43773.0,43772.0,0.0011]
[1646276792686,0.38512857,43773.0,43772.0,0.0011]
[1646276793286,0.08512857,43773.0,43772.0,0.0011]
[1646276795034,0.14900443,43773.0,43772.0,0.0011]
[1646276796636,0.08512857,43773.0,43772.0,0.0011]
[1646276797039,0.0457,43773.0,43772.0,0.0011]
[1646276799686,0.004,43773.0,43772.0,0.0011]
[1646276800983,0.16274698,43780.0,43772.0,0.0011]
[1646276801682,0.16474698,43780.0,43772.0,0.0011]
[1646276802283,0.16474698,43780.0,43772.0,0.00127151]
[1646276802932,0.16274698,43780.0,43772.0,0.00127151]
[1646276803130,0.16274698,43780.0,43772.0,0.0011]
[1646276803631,0.16374698,43780.0,43772.0,0.00127218]
[1646276804538,0.001,43780.0,43773.0,0.114268]
[1646276804741,0.05,43786.0,43785.0,0.00171829]
[1646276804935,0.15223698,43790.0,43785.0,0.00171829]
[1646276805133,1.59001466,43793.0,43785.0,0.00171829]
[1646276805134,0.15223698,43792.0,43785.0,0.00171829]
[1646276805533,0.26546235,43789.0,43785.0,0.00171829]
[1646276806186,0.06257731,43788.0,43785.0,0.00171829]
[1646276807584,0.06857731,43788.0,43785.0,0.00171829]
[1646276809589,0.006,43788.0,43785.0,0.00171829]
[1646276811537,0.26546235,43789.0,43785.0,0.00171829]
[1646276811738,0.26546235,43789.0,43788.0,0.1]
[1646276812542,0.18247563,43791.0,43788.0,0.1]
[1646276813772,0.25869022,43790.0,43788.0,0.1]
[1646276815674,0.26269022,43790.0,43788.0,0.1]
[1646276816474,0.004,43790.0,43788.0,0.1]
[1646276817531,0.27287715,43789.0,43788.0,0.1]
[1646276819635,0.27687715,43789.0,43788.0,0.1]
[1646276820034,0.004,43789.0,43788.0,0.1]
[1646276821190,0.23498147,43793.0,43788.0,0.1]
[1646276821392,0.18998957,43797.0,43788.0,0.1]
[1646276821591,0.21463096,43793.0,43788.0,0.1]
[1646276822192,0.21463096,43793.0,43789.0,0.114229]
[1646276824793,0.21963096,43793.0,43789.0,0.114229]
[1646276827027,0.005,43793.0,43789.0,0.114229]
[1646276827625,0.005,43793.0,43789.0,0.11416588]
[1646276828030,0.16820797,43792.0,43789.0,0.11416588]
[1646276828226,0.16820797,43792.0,43788.0,0.157114]
[1646276829182,0.16820797,43792.0,43788.0,0.1]
[1646276829385,0.18113923,43791.0,43788.0,0.1]
[1646276829583,0.3,43790.0,43788.0,0.1]
[1646276829880,0.0457,43790.0,43788.0,0.1]
[1646276830084,0.17320797,43792.0,43788.0,0.1]
[1646276830685,0.005,43792.0,43788.0,0.1]
[1646276831083,0.21219834,43797.0,43788.0,0.157115]
[1646276831284,0.00063503,43799.0,43788.0,0.157115]
[1646276831684,0.21453739,43799.0,43788.0,0.157115]
[1646276832084,0.21390236,43799.0,43788.0,0.157115]
[1646276833144,0.21390236,43799.0,43788.0,0.21313935]
[1646276834042,0.21390236,43799.0,43789.0,0.057108]
[1646276834444,0.21390236,43799.0,43788.0,0.157115]
[1646276835543,0.21390236,43799.0,43788.0,0.152115]
[1646276835742,0.22090236,43799.0,43788.0,0.152115]
[1646276836372,0.12090236,43799.0,43788.0,0.052115]
[1646276836972,0.11390236,43799.0,43788.0,0.052115]
[1646276838775,0.11390236,43799.0,43789.0,0.057109]
[1646276839475,0.11390236,43799.0,43788.0,0.052115]
[1646276839674,0.11990236,43799.0,43788.0,0.052115]
[1646276841730,0.11390236,43799.0,43788.0,0.052115]
[1646276842331,0.11790236,43799.0,43786.0,0.1144106]
[1646276842530,0.41790236,43799.0,43786.0,0.1144106]
[1646276842732,0.70227656,43799.0,43786.0,0.1144106]
[1646276842931,0.70227656,43799.0,43786.0,0.114232]
[1646276843130,0.18457386,43792.0,43786.0,0.00017859]
[1646276843330,0.21135417,43796.0,43792.0,0.32275649]
[1646276844675,0.27592643,43795.0,43792.0,0.32275649]
[1646276845284,0.28510743,43793.0,43792.0,0.32275649]
[1646276845484,0.3457,43793.0,43792.0,0.32275649]
[1646276845681,0.77832533,43793.0,43792.0,0.32275649]
[1646276845880,0.9363751,43793.0,43792.0,0.32275649]
[1646276846082,0.77832533,43793.0,43792.0,0.32275649]
[1646276846287,0.1457,43793.0,43792.0,0.32275649]
[1646276846680,0.43080158,43793.0,43792.0,0.32275649]
[1646276846881,0.33080158,43793.0,43792.0,0.32275649]
[1646276847083,0.0457,43793.0,43792.0,0.32275649]
[1646276847533,0.28510158,43795.0,43792.0,0.32275649]
[1646276847729,0.49645575,43796.0,43792.0,0.32275649]
[1646276848426,0.28829079,43795.0,43792.0,0.32275649]
[1646276848832,0.49645575,43796.0,43792.0,0.32275649]
[1646276849830,0.28510158,43795.0,43792.0,0.32275649]
[1646276850431,0.28510158,43793.0,43792.0,0.32275649]
[1646276850833,0.57012384,43793.0,43792.0,0.32275649]
[1646276851032,0.28502226,43793.0,43792.0,0.32275649]
[1646276851869,0.29202226,43793.0,43792.0,0.32275649]
[1646276852471,0.57718619,43793.0,43792.0,0.32275649]
[1646276852873,0.29216393,43793.0,43792.0,0.32275649]
[1646276853074,0.007,43793.0,43792.0,0.32275649]
[1646276853673,0.28517907,43794.0,43792.0,0.32275649]
[1646276854077,0.23750867,43794.0,43792.0,0.32275649]
[1646276854675,0.03942857,43793.0,43792.0,0.32275649]
[1646276854936,0.71783749,43793.0,43792.0,0.32275649]
[1646276855141,0.41573472,43793.0,43792.0,0.32275649]
[1646276855336,0.51573472,43793.0,43792.0,0.32275649]
[1646276855736,0.51973472,43793.0,43792.0,0.32275649]
[1646276857034,0.51573472,43793.0,43792.0,0.32275649]
[1646276857834,0.51973472,43793.0,43792.0,0.32275649]
[1646276858136,0.82178957,43793.0,43792.0,0.32275649]
[1646276858342,0.52767423,43793.0,43792.0,0.32275649]
[1646276858779,0.22767423,43793.0,43792.0,0.32275649]
[1646276859178,0.22367423,43793.0,43792.0,0.32275649]
[1646276863630,0.08424566,43793.0,43792.0,0.32275649]
[1646276863831,0.04441409,43793.0,43792.0,0.32275649]
[1646276864030,0.00586843,43793.0,43792.0,0.32275649]
[1646276864632,0.00586813,43793.0,43792.0,0.32275649]
[1646276865030,0.00086813,43793.0,43792.0,0.32275649]
[1646276867291,0.00086813,43793.0,43792.0,0.32267696]
[1646276870634,0.18464395,43793.0,43792.0,0.32267696]
[1646276870833,0.46968351,43793.0,43792.0,0.32267696]
[1646276871034,0.46970437,43793.0,43792.0,0.32267696]
[1646276871234,0.18464395,43793.0,43792.0,0.32267696]
[1646276871435,0.46971583,43793.0,43792.0,0.32267696]
[1646276871735,0.47371583,43793.0,43792.0,0.32267696]
[1646276872337,0.28994001,43793.0,43792.0,0.32267696]
[1646276872736,0.00486813,43793.0,43792.0,0.32267696]
[1646276873236,0.00086813,43793.0,43792.0,0.32267696]
[1646276873534,0.17767234,43793.0,43792.0,0.32267696]
[1646276873781,0.18267234,43793.0,43792.0,0.32267696]
[1646276874883,0.00586813,43793.0,43792.0,0.32267696]
[1646276875283,0.00086813,43793.0,43792.0,0.32267696]
[1646276875882,0.00586813,43793.0,43792.0,0.32267696]
[1646276876284,0.005,43793.0,43792.0,0.32267696]
[1646276877082,0.33252768,43794.0,43792.0,0.32267696]
[1646276877283,0.16432002,43794.0,43792.0,0.32267696]
[1646276877549,0.33252768,43795.0,43792.0,0.32267696]
[1646276877946,0.33252768,43794.0,43792.0,0.32267696]
[1646276878346,0.53106944,43794.0,43792.0,0.32267696]
[1646276878545,0.33252768,43794.0,43792.0,0.32267696]
[1646276879748,0.33252768,43793.0,43792.0,0.32267696]
[1646276880151,0.33252768,43794.0,43792.0,0.32267696]
[1646276880946,0.28501024,43793.0,43792.0,0.32267696]
[1646276881187,0.33252768,43795.0,43792.0,0.32267696]
[1646276881587,0.28502155,43793.0,43792.0,0.32267696]
[1646276884092,0.33252768,43795.0,43792.0,0.32267696]
[1646276885751,0.33252768,43794.0,43792.0,0.32267696]
[1646276886552,0.33752768,43794.0,43792.0,0.32267696]
[1646276886954,0.33252768,43793.0,43792.0,0.32267696]
[1646276889980,0.33252768,43794.0,43792.0,0.32267696]
[1646276890181,0.21042372,43797.0,43792.0,0.32267696]
[1646276890182,0.04603091,43793.0,43792.0,0.32267696]
[1646276890381,0.09173091,43793.0,43792.0,0.32267696]
[1646276890980,0.28407204,43793.0,43792.0,0.32267696]
[1646276891179,0.28407204,43793.0,43792.0,0.32257488]
[1646276891781,0.38407204,43793.0,43792.0,0.32257488]
[1646276892630,0.19673091,43793.0,43792.0,0.32257488]
[1646276893032,0.09673091,43793.0,43792.0,0.32257488]
[1646276893237,0.05103091,43793.0,43792.0,0.32257488]
[1646276893431,0.005,43793.0,43792.0,0.32257488]
[1646276893631,0.05103091,43793.0,43792.0,0.32257488]
[1646276893831,0.005,43793.0,43792.0,0.32257488]
[1646276894030,0.05103091,43793.0,43792.0,0.32257488]
[1646276894232,0.005,43793.0,43792.0,0.32257488]
[1646276894430,0.04603091,43793.0,43792.0,0.32257488]
[1646276894632,0.33262575,43793.0,43792.0,0.32257488]
[1646276895432,0.04603091,43793.0,43792.0,0.32257488]
[1646276895633,0.04603091,43796.0,43792.0,0.32257488]
[1646276896680,0.33261755,43793.0,43792.0,0.32257488]
[1646276897684,0.04603091,43793.0,43792.0,0.32257488]
[1646276898080,0.04603091,43796.0,43792.0,0.32257488]
[1646276899084,0.33262385,43793.0,43792.0,0.32257488]
[1646276899384,0.04603091,43793.0,43792.0,0.32257488]
[1646276899582,0.33261675,43793.0,43792.0,0.32257488]
[1646276900229,0.04603091,43793.0,43792.0,0.32257488]
[1646276900630,0.33862003,43793.0,43792.0,0.32257488]
[1646276901733,0.05917609,43793.0,43792.0,0.32257488]
[1646276901934,0.05317609,43793.0,43792.0,0.32257488]
[1646276902731,0.05917609,43793.0,43792.0,0.32257488]
[1646276906385,0.05317609,43793.0,43792.0,0.32257488]
[1646276906583,0.05317609,43796.0,43792.0,0.32257488]
[1646276908648,0.06017609,43796.0,43792.0,0.32257488]
[1646276909050,0.05317609,43795.0,43792.0,0.32257488]
[1646276910651,0.05317609,43794.0,43792.0,0.32257488]
[1646276910850,0.05317609,43793.0,43792.0,0.32257488]
[1646276912780,0.2492866,43793.0,43792.0,0.32257488]
[1646276913181,0.06017609,43793.0,43792.0,0.32257488]
[1646276914484,0.05317609,43793.0,43792.0,0.32257488]
[1646276914684,0.06017609,43793.0,43792.0,0.3224901]
[1646276915134,0.23201415,43793.0,43792.0,0.3224901]
[1646276915333,0.06017609,43793.0,43792.0,0.3224901]
[1646276915934,0.05317609,43793.0,43792.0,0.3224901]
[1646276916336,0.24445593,43793.0,43792.0,0.3224901]
[1646276916533,0.05917609,43793.0,43792.0,0.3224901]
[1646276917934,0.05317609,43793.0,43792.0,0.3224901]
[1646276918779,0.06017609,43793.0,43792.0,0.3224901]
[1646276919985,0.05317609,43793.0,43792.0,0.3224901]
[1646276920683,0.10487609,43793.0,43792.0,0.12141033]
[1646276920884,0.47136733,43793.0,43792.0,0.12141033]
[1646276921086,0.20401328,43793.0,43792.0,0.12141033]
[1646276921282,0.30401328,43793.0,43792.0,0.12141033]
[1646276921884,0.30401328,43793.0,43786.0,0.0001595]
[1646276922087,0.28330033,43787.0,43786.0,0.0001595]
[1646276922283,0.05894851,43785.0,43782.0,0.01141]
[1646276922542,0.09887609,43784.0,43772.0,0.0011]
[1646276922740,0.44044704,43787.0,43772.0,0.0011]
[1646276922741,0.28499844,43778.0,43772.0,0.0011]
[1646276922943,0.52593005,43778.0,43772.0,0.0011]
[1646276923140,0.28499844,43777.0,43772.0,0.0011]
[1646276923339,0.26434572,43774.0,43772.0,0.0011]
[1646276923539,0.0457,43776.0,43772.0,0.0011]
[1646276923739,0.0457,43776.0,43772.0,0.00125952]
[1646276924842,0.0457,43776.0,43772.0,0.00125981]
[1646276925242,0.0457,43776.0,43772.0,0.07448093]
[1646276925443,0.0457,43776.0,43773.0,0.3]
[1646276926904,0.004,43781.0,43776.0,0.13709999]
[1646276927103,0.004,43781.0,43777.0,0.3]
[1646276927302,0.004,43781.0,43776.0,0.13709999]
[1646276927901,0.18499299,43782.0,43776.0,0.13709999]
[1646276928504,0.43262697,43784.0,43777.0,0.30015948]
[1646276928703,0.005,43782.0,43777.0,0.30015948]
[1646276929507,0.005,43782.0,43777.0,0.3]
[1646276929707,0.005,43782.0,43777.0,0.30015948]
[1646276929949,0.38499844,43785.0,43779.0,0.05460817]
[1646276930157,0.43262697,43786.0,43780.0,0.3]
[1646276930357,0.35020927,43794.0,43780.0,0.414243]
[1646276930358,0.14762853,43789.0,43780.0,0.414243]
[1646276930750,0.002,43790.0,43780.0,0.414243]
[1646276930952,0.002,43790.0,43786.0,2.09751446]
[1646276931153,0.002,43790.0,43787.0,0.3]
[1646276932553,0.28499844,43794.0,43787.0,0.3]
[1646276933554,0.28499844,43794.0,43788.0,0.057116]
[1646276933789,0.28499844,43794.0,43787.0,0.3]
[1646276933989,0.28499844,43793.0,43787.0,0.3]
[1646276935393,0.21844702,43795.0,43787.0,0.3]
[1646276935394,0.28499844,43794.0,43787.0,0.3]
[1646276939834,0.50344546,43795.0,43787.0,0.3]
[1646276940236,0.28499844,43794.0,43787.0,0.3]
[1646276942997,0.28499844,43794.0,43787.0,0.29993607]
[1646276943602,0.28499844,43793.0,43787.0,0.29993607]
[1646276945438,0.28499844,43793.0,43786.0,0.00017219]
[1646276945639,0.02982141,43786.0,43785.0,0.114232]
[1646276946536,0.02982141,43786.0,43785.0,0.414232]
[1646276946737,0.02982141,43786.0,43785.0,0.115232]
[1646276947738,0.02982141,43786.0,43785.0,0.114232]
[1646276948719,0.02982141,43786.0,43785.0,0.115232]
[1646276950122,0.02982141,43786.0,43785.0,0.414232]
[1646276950723,0.02982141,43786.0,43785.0,0.415232]
[1646276951125,0.02982141,43786.0,43785.0,0.58673094]
[1646276951331,0.02982141,43786.0,43785.0,1.04374452]
[1646276951528,0.02982141,43786.0,43785.0,0.69091552]
[1646276952025,0.02982141,43786.0,43785.0,0.71277552]
[1646276952224,0.02982141,43786.0,43785.0,1.16617595]
[1646276952440,0.02982141,43786.0,43785.0,1.04274452]
[1646276952642,0.02982141,43786.0,43785.0,1.04574452]
[1646276952840,0.02982141,43786.0,43785.0,0.87424558]
[1646276953543,0.02982141,43786.0,43785.0,0.815761]
[1646276953943,0.02982141,43786.0,43785.0,0.812761]
[1646276954442,0.02982141,43786.0,43785.0,0.3]
[1646276954645,0.02982141,43786.0,43780.0,0.117251]
[1646276954842,0.02982141,43786.0,43783.0,0.00015948]
[1646276955542,0.02982141,43786.0,43783.0,0.11440148]
[1646276955941,0.02982141,43786.0,43783.0,0.114242]
[1646276956204,0.02982141,43786.0,43784.0,0.3]
[1646276956398,0.02982141,43786.0,43784.0,0.35712]
[1646276957198,0.02982141,43786.0,43785.0,0.3]
[1646276957699,0.02982141,43786.0,43784.0,0.05712]
[1646276957901,0.02982141,43786.0,43783.0,0.00115948]
[1646276958105,0.02982141,43786.0,43783.0,0.00015948]
[1646276958301,0.02982141,43786.0,43778.0,0.1228]
[1646276958503,0.02982141,43786.0,43782.0,0.0001595]
[1646276958703,0.03382141,43786.0,43782.0,0.0001595]
[1646276959503,0.03382141,43786.0,43775.0,0.3]
[1646276959700,0.03382141,43786.0,43782.0,0.0001595]
[1646276959950,0.17265,43784.0,43782.0,0.0001595]
[1646276960754,0.17265,43784.0,43775.0,0.3]
[1646276960954,0.17265,43784.0,43781.0,0.0001595]
[1646276961152,0.0457,43783.0,43781.0,0.0001595]
[1646276961755,0.33069844,43783.0,43781.0,0.0001595]
[1646276961951,0.0457,43783.0,43772.0,0.4146]
[1646276962150,0.18243206,43780.0,43772.0,0.4146]
[1646276963152,0.18243206,43780.0,43772.0,0.1146]
[1646276963354,0.18243206,43780.0,43776.0,0.13727535]
[1646276964389,0.18243206,43780.0,43776.0,0.13709999]
[1646276964692,0.18743206,43780.0,43776.0,0.13727535]
[1646276965490,0.18743206,43780.0,43776.0,0.13709999]
[1646276965691,0.18743206,43780.0,43776.0,0.13728594]
[1646276966091,0.005,43780.0,43776.0,0.13728594]
[1646276966494,0.28477509,43782.0,43776.0,0.13728594]
[1646276966695,0.33047509,43783.0,43776.0,0.13709999]
[1646276966893,0.33047509,43783.0,43776.0,0.13728594]
[1646276967093,0.20361662,43781.0,43776.0,0.13728594]
[1646276967550,0.0457,43780.0,43776.0,0.13728594]
[1646276967951,0.0457,43780.0,43776.0,0.13709999]
[1646276968151,0.1457,43780.0,43776.0,0.13728594]
[1646276969155,0.1457,43780.0,43776.0,0.13709999]
[1646276969353,0.1457,43780.0,43776.0,0.13728607]
[1646276969551,0.1457,43780.0,43776.0,0.13718846]
[1646276970353,0.1457,43780.0,43776.0,0.13700238]
[1646276970557,0.1457,43780.0,43776.0,0.13718846]
[1646276971585,0.0457,43780.0,43776.0,0.13700238]
[1646276971888,0.0457,43780.0,43776.0,0.13718846]
[1646276972692,0.0507,43780.0,43776.0,0.13700238]
[1646276972890,0.0507,43780.0,43776.0,0.13718079]
[1646276973989,0.0507,43780.0,43776.0,0.13700238]
[1646276974188,0.0507,43780.0,43776.0,0.13718079]
[1646276974493,0.0457,43780.0,43776.0,0.13718079]
[1646276974946,0.0497,43780.0,43776.0,0.13718079]
[1646276975149,0.0497,43780.0,43776.0,0.13700238]
[1646276975150,0.0457,43780.0,43776.0,0.13700238]
[1646276975450,0.0457,43780.0,43776.0,0.13718079]
[1646276976247,0.0457,43780.0,43776.0,0.13700238]
[1646276976450,0.0457,43780.0,43776.0,0.13715906]
[1646276976952,0.04909152,43780.0,43776.0,0.13715906]
[1646276977548,0.04909152,43780.0,43776.0,0.13700238]
[1646276977747,0.04909152,43780.0,43776.0,0.13715906]
[1646276978147,0.04509152,43780.0,43776.0,0.13715906]
[1646276978793,0.04909152,43780.0,43776.0,0.13700238]
[1646276978993,0.04909152,43780.0,43776.0,0.13715906]
[1646276979697,0.43386661,43780.0,43776.0,0.13715906]
[1646276979894,0.28477509,43779.0,43776.0,0.13700238]
[1646276980096,0.3457,43778.0,43776.0,0.13716047]
[1646276980295,0.3,43777.0,43776.0,0.13716047]
[1646276980495,0.3457,43777.0,43776.0,0.13716047]
[1646276981096,0.3457,43777.0,43776.0,0.13700238]
[1646276981497,0.0457,43777.0,43776.0,0.13700238]
[1646276984846,0.0497,43777.0,43776.0,0.13700238]
[1646276986682,0.0457,43777.0,43776.0,0.13700238]
[1646276988884,0.0497,43777.0,43776.0,0.13700238]
[1646276989935,0.004,43777.0,43776.0,0.13700238]
[1646276990144,0.1,43781.0,43776.0,0.13700238]
[1646276990339,0.38477509,43782.0,43776.0,0.13700238]
[1646276991036,0.38477509,43782.0,43777.0,0.0001749]
[1646276991937,0.38477509,43782.0,43776.0,0.13700238]
[1646276992137,0.38477509,43782.0,43777.0,0.00017193]
[1646276992841,0.38977509,43782.0,43777.0,0.00017193]
[1646276993037,0.38977509,43782.0,43776.0,0.13700238]
[1646276993438,0.38977509,43782.0,43777.0,0.00017193]
[1646276994285,0.38977509,43782.0,43776.0,0.13700238]
[1646276994487,0.38977509,43782.0,43777.0,0.00017193]
[1646276994685,0.33047509,43781.0,43777.0,0.00017193]
[1646276995185,0.1,43780.0,43777.0,0.00017193]
[1646276995389,0.0457,43779.0,43777.0,0.00017193]
[1646276995587,0.0457,43779.0,43776.0,0.13700238]
[1646276995787,0.28477509,43778.0,43776.0,0.13717431]
[1646276995987,0.0457,43777.0,43776.0,0.13717431]
[1646276996788,0.0497,43777.0,43776.0,0.13700238]
[1646276998133,0.0457,43777.0,43776.0,0.13700238]
[1646277000235,0.33047509,43777.0,43776.0,0.13700238]
[1646277000439,0.33047509,43777.0,43776.0,0.13692042]
[1646277002431,0.0457,43777.0,43776.0,0.13692042]
[1646277004432,0.3779376,43777.0,43776.0,0.13692042]
[1646277004836,0.3322376,43778.0,43776.0,0.13692042]
[1646277005042,0.3322376,43779.0,43776.0,0.13692042]
[1646277005245,0.1,43778.0,43774.0,0.3]
[1646277005442,0.28482059,43776.0,43775.0,0.00017221]
[1646277005648,0.28482059,43778.0,43775.0,0.00011221]
[1646277005847,0.008,43782.0,43775.0,0.00011221]
[1646277005848,0.28482059,43779.0,43776.0,0.352829]
[1646277006046,0.47689456,43782.0,43779.0,0.50742917]
[1646277006047,0.008,43782.0,43779.0,0.50742917]
[1646277006243,0.008,43782.0,43780.0,0.3]
[1646277007042,0.008,43782.0,43780.0,0.301]
[1646277007643,0.29282059,43782.0,43780.0,0.301]
[1646277008691,0.008,43782.0,43780.0,0.301]
[1646277008992,0.28482059,43783.0,43780.0,0.3]
[1646277009794,0.23734918,43781.0,43780.0,0.3]
[1646277010694,0.23734918,43782.0,43780.0,0.3]
[1646277012195,0.23734918,43782.0,43779.0,0.56455417]
[1646277012452,0.003,43786.0,43779.0,0.50742917]
[1646277012453,0.23734918,43781.0,43779.0,0.50742917]
[1646277012653,0.23734918,43780.0,43779.0,0.50742917]
[1646277013650,0.28782059,43781.0,43779.0,0.50742917]
[1646277014052,0.28482059,43780.0,43779.0,0.50742917]
[1646277014653,0.3322376,43783.0,43779.0,0.50742917]
[1646277014654,0.28482059,43781.0,43779.0,0.50742917]
[1646277014851,0.28482059,43780.0,43779.0,0.50742917]
[1646277015051,0.28482059,43781.0,43779.0,0.50742917]
[1646277015251,0.28482059,43782.0,43779.0,0.50742917]
[1646277016055,0.28482059,43781.0,43779.0,0.50742917]
[1646277016288,0.28482059,43780.0,43779.0,0.50742917]
[1646277016488,0.3322376,43781.0,43779.0,0.50742917]
[1646277016686,0.14116901,43787.0,43779.0,0.50742917]
[1646277016687,0.3322376,43780.0,43779.0,0.50742917]
[1646277016890,0.0457,43780.0,43779.0,0.50742917]
[1646277017089,0.0487,43780.0,43779.0,0.50742917]
[1646277017287,0.13381616,43780.0,43779.0,0.50742917]
[1646277018592,0.13081616,43780.0,43779.0,0.50742917]
[1646277022636,0.17024473,43780.0,43779.0,0.50742917]
[1646277023037,0.17424473,43780.0,43779.0,0.50742917]
[1646277024490,0.17024473,43780.0,43779.0,0.50742917]
[1646277029041,0.23140173,43780.0,43779.0,0.50742917]
[1646277029239,0.33140173,43780.0,43779.0,0.50742917]
[1646277030440,0.32740173,43780.0,43779.0,0.50742917]
[1646277031042,0.33240173,43780.0,43779.0,0.50742917]
[1646277031701,0.27524473,43780.0,43779.0,0.50742917]
[1646277032501,0.17524473,43780.0,43779.0,0.50742917]
[1646277032900,0.17024473,43780.0,43779.0,0.50742917]
[1646277034101,0.22740373,43780.0,43779.0,0.50742917]
[1646277034305,0.32740373,43780.0,43779.0,0.50742917]
[1646277034700,0.62740373,43780.0,43779.0,0.50742917]
[1646277035148,0.63140373,43780.0,43779.0,0.50742917]
[1646277036851,0.33140373,43780.0,43779.0,0.50735257]
[1646277038449,0.32740373,43780.0,43779.0,0.50735257]
[1646277039100,0.27024473,43780.0,43779.0,0.50735257]
[1646277039298,0.12454473,43780.0,43779.0,0.50735257]